bitfinex/quotes_BTCUSD_20220120
["timestamp","ask_amount","ask_price","bid_price","bid_amount"]
[1642651811955,7.428e-05,41986.0,41982.0,0.007]
[1642651812151,7.428e-05,41986.0,41982.0,0.00821231]
[1642651812551,0.26076699,41986.0,41982.0,0.00821231]
[1642651812954,0.26076699,41986.0,41982.0,0.00121231]
[1642651813153,0.26076699,41986.0,41981.0,0.059551]
[1642651813351,7.428e-05,41986.0,41982.0,0.00121231]
[1642651813553,0.24819769,41986.0,41982.0,0.00121231]
[1642651813854,0.24819769,41986.0,41982.0,0.00821231]
[1642651814064,0.00120613,41983.0,41982.0,0.00821231]
[1642651814258,1.11773113,41983.0,41982.0,0.007]
[1642651814468,0.00126801,41971.0,41970.0,6.876e-05]
[1642651814660,0.20524801,41971.0,41970.0,6.876e-05]
[1642651814956,0.71846397,41971.0,41969.0,0.00021795]
[1642651815154,0.63172635,41970.0,41969.0,0.00021795]
[1642651815354,0.6758736,41970.0,41969.0,0.00021795]
[1642651815800,0.99019806,41970.0,41969.0,0.00021795]
[1642651816003,0.99019806,41970.0,41968.0,0.00064314]
[1642651816004,1.4714871,41970.0,41968.0,0.00064314]
[1642651816201,1.14108946,41969.0,41968.0,0.00064314]
[1642651816401,1.18898946,41969.0,41968.0,0.00064314]
[1642651816600,0.24408363,41964.0,41962.0,0.00077963]
[1642651816800,0.41002954,41963.0,41962.0,0.00077963]
[1642651818002,0.42502954,41963.0,41962.0,0.00077963]
[1642651818404,0.00124987,41949.0,41944.0,0.5246]
[1642651818605,0.09790987,41949.0,41947.0,0.384927]
[1642651818804,0.09790987,41949.0,41947.0,0.00037819]
[1642651819305,0.09790987,41949.0,41947.0,0.32194495]
[1642651819754,0.09790987,41949.0,41948.0,0.000361]
[1642651820953,0.07197987,41949.0,41948.0,0.000361]
[1642651821856,0.07073,41949.0,41948.0,0.000361]
[1642651822059,0.07073,41949.0,41948.0,0.065361]
[1642651823504,0.0479,41953.0,41948.0,0.315361]
[1642651823903,0.0479,41953.0,41950.0,0.059587]
[1642651824104,0.0479,41953.0,41951.0,0.384927]
[1642651824105,0.0559,41953.0,41951.0,0.384927]
[1642651824304,0.0559,41953.0,41951.0,0.38523643]
[1642651824503,0.0559,41953.0,41952.0,0.80029224]
[1642651824706,0.0559,41953.0,41952.0,1.18521924]
[1642651824908,0.008,41953.0,41952.0,1.4000073]
[1642651825105,0.008,41953.0,41952.0,1.4500073]
[1642651825307,0.008,41953.0,41952.0,1.48427518]
[1642651826106,0.26400184,41962.0,41954.0,0.059583]
[1642651826308,0.26400184,41962.0,41955.0,0.059583]
[1642651826504,0.53648907,41965.0,41962.0,0.24227096]
[1642651826705,0.27248723,41965.0,41962.0,0.24227096]
[1642651826960,0.27248723,41965.0,41963.0,0.00010314]
[1642651827659,0.00127084,41967.0,41963.0,0.00010314]
[1642651827862,0.00127084,41967.0,41963.0,6.66e-06]
[1642651828062,0.35487095,41975.0,41963.0,6.66e-06]
[1642651828258,0.076765,41972.0,41963.0,0.01300666]
[1642651828459,0.004,41965.0,41963.0,0.01300666]
[1642651828660,0.004,41965.0,41964.0,0.384927]
[1642651829658,0.004,41965.0,41964.0,0.61526782]
[1642651830265,0.00013086,41971.0,41964.0,0.63026782]
[1642651830460,0.00013086,41971.0,41964.0,0.24534082]
[1642651830702,0.00011367,41970.0,41964.0,0.015]
[1642651831099,9.648e-05,41969.0,41964.0,0.015]
[1642651831302,9.648e-05,41969.0,41965.0,0.00121257]
[1642651831500,7.929e-05,41968.0,41965.0,0.00121257]
[1642651831900,6.21e-05,41967.0,41965.0,0.00121257]
[1642651832301,0.02,41969.0,41964.0,0.023]
[1642651832605,7.929e-05,41968.0,41964.0,0.00121259]
[1642651833002,6.21e-05,41967.0,41964.0,0.00121259]
[1642651833401,0.00013086,41971.0,41963.0,0.05958066]
[1642651833601,0.00013086,41971.0,41963.0,0.06079325]
[1642651833801,0.00011367,41970.0,41963.0,0.06079325]
[1642651834004,2.18921777,41968.0,41963.0,0.00121925]
[1642651834201,2.18921777,41968.0,41966.0,0.00022526]
[1642651834202,0.076765,41967.0,41966.0,0.00022526]
[1642651834446,0.0768271,41967.0,41966.0,0.00022526]
[1642651836549,0.1088271,41967.0,41966.0,0.00222526]
[1642651838203,0.0768271,41967.0,41966.0,0.00022526]
[1642651838603,0.1088271,41967.0,41966.0,0.00222526]
[1642651838805,0.0320621,41967.0,41966.0,0.00222526]
[1642651839205,0.0320621,41967.0,41966.0,0.30222526]
[1642651839604,0.0320621,41967.0,41966.0,0.00222526]
[1642651840204,0.00068983,41967.0,41966.0,0.00022526]
[1642651840605,0.03168983,41967.0,41966.0,0.00222526]
[1642651841106,0.10845483,41967.0,41966.0,0.00222526]
[1642651842561,0.03168983,41967.0,41966.0,0.00222526]
[1642651844161,0.03168983,41967.0,41966.0,0.002]
[1642651845166,0.10845483,41967.0,41966.0,0.002]
[1642651845362,0.11445483,41967.0,41964.0,0.00121258]
[1642651845568,0.03768983,41967.0,41963.0,6.66e-06]
[1642651845803,0.03768983,41967.0,41964.0,0.00094788]
[1642651846204,0.00068983,41967.0,41964.0,0.00094788]
[1642651846603,0.00068983,41967.0,41963.0,6.66e-06]
[1642651846801,0.00068983,41967.0,41963.0,0.00095458]
[1642651847804,0.00068983,41967.0,41963.0,6.66e-06]
[1642651848008,0.0479,41970.0,41967.0,0.51773499]
[1642651848207,0.076765,41969.0,41967.0,0.51773499]
[1642651848704,0.05958154,41968.0,41967.0,0.51773499]
[1642651848902,0.13634654,41968.0,41967.0,0.51773499]
[1642651850660,0.14934654,41968.0,41967.0,0.51773499]
[1642651852060,0.07258154,41968.0,41967.0,0.51773499]
[1642651852360,0.05958154,41968.0,41967.0,0.51773499]
[1642651852763,0.015,41968.0,41967.0,0.51773499]
[1642651854801,0.016,41968.0,41967.0,0.51773499]
[1642651856107,0.27589884,41972.0,41967.0,0.51773499]
[1642651856303,0.076765,41971.0,41967.0,0.57730199]
[1642651856504,0.07683376,41971.0,41967.0,0.57730199]
[1642651856705,6.876e-05,41971.0,41968.0,0.24488719]
[1642651858961,0.01206876,41971.0,41968.0,0.24888719]
[1642651859161,0.01206876,41971.0,41969.0,0.24247528]
[1642651859363,0.01206876,41971.0,41969.0,0.47245606]
[1642651859565,0.01206876,41971.0,41970.0,0.22814272]
[1642651860567,6.876e-05,41971.0,41970.0,0.22814272]
[1642651860802,6.876e-05,41971.0,41970.0,0.23814272]
[1642651861209,6.876e-05,41971.0,41970.0,0.01]
[1642651861409,0.25579653,41977.0,41970.0,0.01]
[1642651861606,0.076765,41976.0,41970.0,0.01]
[1642651861802,0.07685095,41976.0,41970.0,0.01]
[1642651862202,0.05957399,41974.0,41970.0,0.01]
[1642651862403,0.05957399,41974.0,41970.0,0.25339414]
[1642651862903,0.05957399,41974.0,41970.0,0.24339414]
[1642651863103,0.09657399,41974.0,41970.0,0.24339414]
[1642651863702,0.09657399,41974.0,41967.0,0.51773499]
[1642651865158,0.09657399,41974.0,41970.0,0.22368563]
[1642651865761,0.12157399,41974.0,41970.0,0.22368563]
[1642651865962,0.12157399,41974.0,41967.0,0.52573499]
[1642651866363,0.08457399,41974.0,41967.0,0.52573499]
[1642651867064,0.08457399,41974.0,41967.0,0.51773499]
[1642651867263,0.09257399,41974.0,41967.0,0.52573499]
[1642651867664,0.033,41974.0,41967.0,0.52573499]
[1642651868299,8.595e-05,41976.0,41967.0,0.51773499]
[1642651868502,8.595e-05,41976.0,41969.0,0.23857749]
[1642651868698,0.076765,41975.0,41969.0,0.23857749]
[1642651868899,0.076765,41975.0,41967.0,0.51773499]
[1642651870400,0.076765,41975.0,41970.0,0.21078268]
[1642651871401,0.104765,41975.0,41970.0,0.21078268]
[1642651871958,0.10654397,41975.0,41967.0,0.51773499]
[1642651872355,0.03653413,41974.0,41967.0,0.51773499]
[1642651872554,0.00177897,41972.0,41967.0,0.51773499]
[1642651873059,1.93545902,41970.0,41967.0,0.51773499]
[1642651873255,0.076765,41969.0,41967.0,0.51773499]
[1642651873956,0.00177897,41972.0,41967.0,0.51773499]
[1642651874171,0.60966162,41972.0,41967.0,0.51773499]
[1642651874660,0.10177897,41972.0,41967.0,0.51773499]
[1642651874858,0.31521237,41969.0,41967.0,0.51773499]
[1642651875717,0.4979,41968.0,41967.0,0.51773499]
[1642651875917,0.85303413,41968.0,41967.0,0.51773499]
[1642651876118,1.05410573,41968.0,41967.0,0.51780375]
[1642651877118,0.4182896,41968.0,41967.0,0.51780375]
[1642651878520,0.4042896,41968.0,41967.0,0.51780375]
[1642651879324,0.4182896,41968.0,41967.0,0.51780375]
[1642651880959,0.4042896,41968.0,41967.0,0.51780375]
[1642651881562,0.4182896,41968.0,41967.0,0.51780375]
[1642651883060,0.4232896,41968.0,41967.0,0.51780375]
[1642651883304,0.14492047,41968.0,41967.0,0.51780375]
[1642651883504,0.14669944,41968.0,41967.0,0.51780375]
[1642651883803,0.14492047,41968.0,41967.0,0.51780375]
[1642651884803,0.12592047,41968.0,41967.0,0.51780375]
[1642651885405,0.14392047,41968.0,41967.0,0.51773416]
[1642651886405,0.14569944,41968.0,41967.0,0.51773416]
[1642651886703,0.38925125,41968.0,41967.0,0.51773416]
[1642651887153,0.37125125,41968.0,41967.0,0.51773416]
[1642651887448,0.38925125,41968.0,41967.0,0.51773416]
[1642651888748,0.37125125,41968.0,41967.0,0.51773416]
[1642651889354,0.37303022,41968.0,41967.0,0.51773416]
[1642651889553,0.39025125,41968.0,41967.0,0.51773416]
[1642651889749,0.14492047,41968.0,41967.0,0.51773416]
[1642651890801,0.3964193,41968.0,41967.0,0.51773416]
[1642651891201,0.3774193,41968.0,41967.0,0.51773416]
[1642651891701,0.3964193,41968.0,41967.0,0.51773416]
[1642651892402,0.39819827,41968.0,41967.0,0.51773416]
[1642651892604,0.14492047,41968.0,41967.0,0.51773416]
[1642651893206,0.12592047,41968.0,41967.0,0.51773416]
[1642651893805,0.14392047,41968.0,41967.0,0.51773416]
[1642651895151,0.12592047,41968.0,41967.0,0.51773416]
[1642651895560,0.124665,41968.0,41967.0,0.51773416]
[1642651896254,0.141665,41968.0,41967.0,0.51773416]
[1642651897654,0.124665,41968.0,41967.0,0.51773416]
[1642651899003,0.141665,41968.0,41967.0,0.51773416]
[1642651899801,0.158665,41968.0,41967.0,0.51773416]
[1642651900202,0.124665,41968.0,41967.0,0.51773416]
[1642651901804,0.141665,41968.0,41967.0,0.51773416]
[1642651902051,0.14103278,41968.0,41967.0,0.51773416]
[1642651903255,0.12403278,41968.0,41967.0,0.51773416]
[1642651903856,0.14103278,41968.0,41967.0,0.51773416]
[1642651904058,0.3632068,41968.0,41967.0,0.51773416]
[1642651904262,0.41623597,41968.0,41967.0,0.51773416]
[1642651904460,0.41623597,41968.0,41965.0,0.00121256]
[1642651904461,0.4,41967.0,41965.0,0.00121256]
[1642651904661,1.91448116,41966.0,41965.0,0.00121256]
[1642651904858,1.95573307,41966.0,41965.0,0.00121256]
[1642651905059,3.16390066,41966.0,41965.0,0.00121256]
[1642651905262,2.45556145,41966.0,41965.0,0.00121256]
[1642651905557,0.28706685,41952.0,41950.0,0.98407813]
[1642651905811,0.0479,41953.0,41950.0,0.21563463]
[1642651906111,0.0479,41953.0,41951.0,0.00027505]
[1642651908009,0.0499,41953.0,41951.0,0.00027505]
[1642651909452,0.0479,41953.0,41951.0,0.00027505]
[1642651909856,0.0499,41953.0,41951.0,0.00027505]
[1642651913206,0.0499,41953.0,41950.0,0.0012128]
[1642651913813,0.0499,41953.0,41950.0,0.059594]
[1642651914707,0.0499,41953.0,41950.0,0.119187]
[1642651915308,0.0499,41953.0,41950.0,0.059594]
[1642651915707,0.0559,41953.0,41950.0,0.059594]
[1642651915908,0.0589,41953.0,41951.0,0.61649169]
[1642651916108,0.0589,41953.0,41952.0,0.25]
[1642651916318,0.0589,41953.0,41952.0,0.00025786]
[1642651916708,0.0589,41953.0,41950.0,0.0012128]
[1642651916956,0.057,41953.0,41950.0,0.0012128]
[1642651917156,0.046,41953.0,41950.0,0.0012128]
[1642651917557,0.046,41953.0,41949.0,0.00030943]
[1642651917757,0.046,41953.0,41949.0,0.00152224]
[1642651918156,0.046,41953.0,41950.0,0.38521924]
[1642651918556,0.046,41953.0,41950.0,0.00029224]
[1642651919157,0.046,41953.0,41949.0,0.00152224]
[1642651919358,0.046,41953.0,41950.0,0.00029224]
[1642651920358,0.046,41953.0,41949.0,0.00152224]
[1642651920557,0.046,41953.0,41950.0,0.00029224]
[1642651921407,0.046,41953.0,41949.0,0.00152224]
[1642651921613,0.046,41953.0,41950.0,0.00029224]
[1642651923507,0.31282716,41953.0,41950.0,0.00029224]
[1642651923907,0.31282716,41953.0,41949.0,0.00121281]
[1642651923908,0.076765,41952.0,41949.0,0.00121281]
[1642651924115,0.0479,41951.0,41950.0,0.00029224]
[1642651924656,0.124665,41951.0,41950.0,0.00029224]
[1642651924857,0.38262299,41951.0,41950.0,0.00029224]
[1642651925063,0.38262299,41951.0,41948.0,0.00121282]
[1642651925256,0.30585799,41951.0,41949.0,0.00030943]
[1642651925459,0.24691967,41950.0,41949.0,0.00030943]
[1642651925659,0.29483407,41950.0,41949.0,0.00030943]
[1642651925858,0.29783407,41950.0,41949.0,0.00030943]
[1642651926257,0.29783407,41950.0,41947.0,0.00121284]
[1642651926457,0.29783407,41950.0,41948.0,0.00032662]
[1642651927258,0.0509,41950.0,41948.0,0.00032662]
[1642651927459,0.38207714,41949.0,41947.0,0.00121285]
[1642651927660,0.13637541,41949.0,41948.0,0.00032662]
[1642651928306,0.38904892,41949.0,41948.0,0.00032662]
[1642651928709,0.38904892,41949.0,41946.0,0.00157385]
[1642651928909,0.00129369,41948.0,41947.0,0.00034381]
[1642651929108,0.62595869,41948.0,41947.0,0.00034381]
[1642651929313,0.89426968,41948.0,41947.0,0.00034381]
[1642651929511,0.96971627,41948.0,41947.0,0.00034381]
[1642651929906,0.96971627,41948.0,41946.0,0.000361]
[1642651930109,0.476765,41947.0,41946.0,0.000361]
[1642651930307,1.12173397,41947.0,41946.0,0.000361]
[1642651930506,1.22173397,41947.0,41946.0,0.000361]
[1642651932155,1.23273397,41947.0,41946.0,0.000361]
[1642651933154,0.83273397,41947.0,41946.0,0.000361]
[1642651933454,0.82173397,41947.0,41946.0,0.000361]
[1642651934055,0.83273397,41947.0,41946.0,0.000361]
[1642651934460,1.13098787,41947.0,41946.0,0.000361]
[1642651934655,0.83273397,41947.0,41946.0,0.000361]
[1642651935361,0.82173397,41947.0,41946.0,0.000361]
[1642651935558,0.719955,41947.0,41946.0,0.000361]
[1642651935818,0.72173397,41947.0,41946.0,0.000361]
[1642651936113,0.719955,41947.0,41946.0,0.000361]
[1642651936316,0.730955,41947.0,41946.0,0.000361]
[1642651937021,0.131755,41947.0,41946.0,0.000361]
[1642651937714,0.120755,41947.0,41946.0,0.000361]
[1642651938117,0.131755,41947.0,41946.0,0.000361]
[1642651938315,0.0589,41947.0,41946.0,0.000361]
[1642651939458,0.0479,41947.0,41946.0,0.000361]
[1642651940058,0.0679,41947.0,41946.0,0.000361]
[1642651941361,0.0479,41947.0,41946.0,0.000361]
[1642651942167,0.0679,41947.0,41946.0,0.000361]
[1642651942765,0.140725,41947.0,41946.0,0.000361]
[1642651943717,0.120725,41947.0,41946.0,0.000361]
[1642651944120,0.131725,41947.0,41946.0,0.000361]
[1642651944316,0.37982661,41947.0,41946.0,0.000361]
[1642651944720,0.131725,41947.0,41946.0,0.000361]
[1642651945318,0.120725,41947.0,41946.0,0.000361]
[1642651946118,0.131725,41947.0,41946.0,0.000361]
[1642651947362,0.120725,41947.0,41946.0,0.000361]
[1642651947558,0.36711121,41947.0,41946.0,0.000361]
[1642651948061,0.37811121,41947.0,41946.0,0.000361]
[1642651948958,0.42811121,41947.0,41946.0,0.000361]
[1642651949359,0.41711121,41947.0,41946.0,0.000361]
[1642651950162,0.42811121,41947.0,41946.0,0.000361]
[1642651950362,0.42989018,41947.0,41946.0,0.000361]
[1642651951008,0.52989018,41947.0,41946.0,0.000361]
[1642651951509,0.51889018,41947.0,41946.0,0.000361]
[1642651952207,0.53389018,41947.0,41946.0,0.000361]
[1642651953412,0.00304635,41945.0,41941.0,0.02]
[1642651953616,0.77955528,41944.0,41941.0,0.02]
[1642651953812,0.059631,41943.0,41941.0,0.02]
[1642651954016,0.120725,41942.0,41941.0,0.02]
[1642651954213,0.65488496,41942.0,41941.0,0.02]
[1642651954455,1.03509665,41942.0,41938.0,0.00485227]
[1642651954661,1.13509665,41942.0,41932.0,0.48077264]
[1642651954958,0.00177897,41940.0,41939.0,0.00121296]
[1642651955163,0.12250397,41940.0,41939.0,0.00121296]
[1642651955360,0.17250397,41940.0,41939.0,0.00121296]
[1642651955762,0.4436729,41940.0,41939.0,0.00121296]
[1642651955963,0.00125441,41936.0,41934.0,0.00013752]
[1642651956161,0.0479,41935.0,41934.0,0.00013752]
[1642651956662,0.120725,41935.0,41934.0,0.00013752]
[1642651956862,0.40056043,41935.0,41934.0,0.00013752]
[1642651958062,0.51456043,41935.0,41934.0,0.00013752]
[1642651958312,0.79806238,41935.0,41934.0,0.00013752]
[1642651958512,0.79806238,41935.0,41933.0,0.047695]
[1642651958513,0.00678321,41934.0,41933.0,0.047695]
[1642651958714,0.17873014,41934.0,41933.0,0.047695]
[1642651958916,0.22873014,41934.0,41933.0,0.047695]
[1642651959116,0.23050911,41934.0,41933.0,0.047695]
[1642651960320,0.17750821,41934.0,41933.0,0.047695]
[1642651960516,0.1099,41934.0,41933.0,0.047695]
[1642651960915,0.0599,41934.0,41933.0,0.447695]
[1642651961956,0.0599,41934.0,41933.0,0.047695]
[1642651962156,0.132725,41934.0,41933.0,0.047695]
[1642651963460,0.120725,41934.0,41933.0,0.047695]
[1642651964259,0.131725,41934.0,41933.0,0.047695]
[1642651964759,0.181725,41934.0,41933.0,0.047695]
[1642651965367,0.43439623,41934.0,41933.0,0.047695]
[1642651965561,0.43914997,41934.0,41933.0,0.047695]
[1642651966232,0.45114997,41934.0,41933.0,0.047695]
[1642651967433,0.18450397,41934.0,41933.0,0.042695]
[1642651967638,0.43144152,41934.0,41933.0,0.042695]
[1642651968132,0.44344152,41934.0,41933.0,0.042695]
[1642651968434,0.18450397,41934.0,41933.0,0.042695]
[1642651969660,0.17250397,41934.0,41933.0,0.042695]
[1642651970060,0.17250397,41934.0,41933.0,0.037695]
[1642651970263,0.18450397,41934.0,41933.0,0.037695]
[1642651971265,0.44732443,41934.0,41933.0,0.037695]
[1642651971462,0.43532443,41934.0,41933.0,0.03748645]
[1642651971861,0.53532443,41934.0,41933.0,0.03748645]
[1642651972262,0.54732443,41934.0,41933.0,0.03748645]
[1642651972465,0.55381121,41933.0,41931.0,0.02121308]
[1642651972663,0.39570832,41932.0,41931.0,0.02]
[1642651972863,0.44748729,41932.0,41931.0,0.02121308]
[1642651973714,0.44868849,41932.0,41931.0,0.02121308]
[1642651973913,0.44868849,41932.0,41931.0,0.02]
[1642651974114,0.46068849,41932.0,41931.0,0.02]
[1642651975321,0.559646,41930.0,41929.0,0.00121311]
[1642651975521,0.33343531,41930.0,41929.0,0.00121311]
[1642651975724,0.33343531,41930.0,41929.0,0.00129906]
[1642651975927,0.27378931,41930.0,41929.0,0.00129906]
[1642651976317,0.28678931,41930.0,41929.0,8.595e-05]
[1642651976518,0.48867351,41930.0,41929.0,8.595e-05]
[1642651976717,0.37421215,41929.0,41927.0,0.00121314]
[1642651976967,0.120725,41928.0,41927.0,0.00121314]
[1642651977171,0.170725,41928.0,41927.0,0.00121314]
[1642651977367,0.170725,41928.0,41927.0,0.00133347]
[1642651977568,0.4347906,41928.0,41927.0,0.00012033]
[1642651977870,0.4347906,41928.0,41925.0,0.00121318]
[1642651978068,0.11929942,41927.0,41925.0,0.00121318]
[1642651978272,0.70276796,41926.0,41925.0,0.00121318]
[1642651978569,0.81241729,41926.0,41925.0,0.00136789]
[1642651978767,0.81419626,41926.0,41925.0,0.00015471]
[1642651979167,0.81419626,41926.0,41923.0,0.00121321]
[1642651979368,0.56694292,41926.0,41924.0,0.0001719]
[1642651979970,0.00183,41925.0,41924.0,0.0001719]
[1642651980174,0.04973,41925.0,41924.0,0.0001719]
[1642651980379,0.04973,41925.0,41923.0,0.00121321]
[1642651980572,0.04973,41925.0,41924.0,0.0001719]
[1642651981516,0.04376698,41925.0,41923.0,0.00018909]
[1642651982412,0.05076698,41925.0,41923.0,0.00018909]
[1642651983514,0.04376698,41925.0,41923.0,0.00018909]
[1642651983916,0.04376698,41925.0,41922.0,0.00141951]
[1642651984117,0.04376698,41925.0,41924.0,0.00028672]
[1642651984316,0.06876698,41925.0,41924.0,0.00028672]
[1642651984566,0.06876698,41925.0,41924.0,0.00045862]
[1642651985566,0.04376698,41925.0,41924.0,0.00045862]
[1642651986369,0.05776698,41925.0,41924.0,0.00045862]
[1642651987568,0.04376698,41925.0,41924.0,0.00045862]
[1642651987971,0.00128534,41930.0,41924.0,0.24466641]
[1642651988225,0.2915,41933.0,41924.0,0.24466641]
[1642651988226,0.013,41925.0,41924.0,0.24466641]
[1642651988440,0.013,41925.0,41924.0,0.38557662]
[1642651988624,0.013,41925.0,41924.0,0.83557662]
[1642651989219,0.013,41925.0,41924.0,0.89520962]
[1642651989622,0.25765094,41932.0,41924.0,0.89520962]
[1642651989820,0.25765094,41932.0,41924.0,0.51009162]
[1642651990326,0.27365094,41932.0,41924.0,0.51009162]
[1642651990524,0.27365094,41932.0,41926.0,0.27563976]
[1642651990721,0.27365094,41932.0,41926.0,0.33526676]
[1642651990922,0.27365094,41932.0,41927.0,0.05974633]
[1642651991324,0.27365094,41932.0,41928.0,0.00010314]
[1642651991325,0.016,41932.0,41928.0,0.00010314]
[1642651991530,0.0596267,41938.0,41928.0,0.00010314]
[1642651991728,0.00123595,41939.0,41929.0,0.059623]
[1642651991973,0.00123595,41939.0,41929.0,0.34586954]
[1642651992172,6.876e-05,41938.0,41931.0,0.00121309]
[1642651992376,0.32376346,41935.0,41931.0,0.00121309]
[1642651993173,0.32376346,41935.0,41930.0,6.876e-05]
[1642651993373,0.32376346,41935.0,41931.0,0.00121309]
[1642651994175,0.32376346,41935.0,41933.0,0.00028459]
[1642651994375,0.072825,41934.0,41933.0,0.00028459]
[1642651994574,0.32976346,41935.0,41933.0,0.00028459]
[1642651995375,0.072825,41934.0,41933.0,0.00028459]
[1642651996320,0.079825,41934.0,41933.0,0.01528459]
[1642651997615,0.072825,41934.0,41933.0,0.00028459]
[1642651998316,0.079825,41934.0,41933.0,0.01528459]
[1642651999585,0.072825,41934.0,41933.0,0.00028459]
[1642652000384,0.00684938,41938.0,41933.0,0.01528459]
[1642652000586,0.007,41934.0,41933.0,0.01528459]
[1642652001785,0.25082979,41937.0,41933.0,0.00028459]
[1642652002084,0.25076379,41937.0,41933.0,0.00028459]
[1642652002286,0.25776379,41937.0,41933.0,0.00928459]
[1642652002485,0.072825,41936.0,41933.0,0.00928459]
[1642652002885,0.072825,41936.0,41933.0,0.01049765]
[1642652003517,0.072825,41936.0,41933.0,0.00149765]
[1642652003924,0.072825,41936.0,41933.0,0.00028459]
[1642652004122,0.072825,41936.0,41932.0,0.00121307]
[1642652004418,0.079825,41936.0,41933.0,0.011]
[1642652005519,0.072825,41936.0,41932.0,0.00121307]
[1642652006321,0.079825,41936.0,41932.0,0.016]
[1642652006624,0.079825,41936.0,41932.0,0.01721308]
[1642652006821,0.24985593,41935.0,41932.0,0.01721308]
[1642652007065,0.072825,41934.0,41932.0,0.01721308]
[1642652007566,0.072825,41934.0,41930.0,0.00035288]
[1642652007766,0.122825,41934.0,41931.0,0.00121309]
[1642652008271,0.24707811,41933.0,41931.0,0.00121309]
[1642652008468,0.62198467,41932.0,41931.0,0.00121309]
[1642652008668,0.77198467,41932.0,41930.0,0.00035288]
[1642652008867,0.83163005,41932.0,41930.0,0.00156599]
[1642652009068,0.39127605,41932.0,41930.0,0.00156599]
[1642652009272,0.39127605,41932.0,41930.0,0.00128187]
[1642652009869,0.472825,41931.0,41930.0,6.876e-05]
[1642652010069,0.620725,41931.0,41930.0,6.876e-05]
[1642652010270,0.620725,41931.0,41929.0,0.00121312]
[1642652010468,0.620725,41931.0,41930.0,6.876e-05]
[1642652010713,1.21585098,41931.0,41930.0,6.876e-05]
[1642652010914,0.81585098,41931.0,41929.0,0.00121312]
[1642652011116,0.35721356,41930.0,41915.0,1.1207]
[1642652011319,0.22685301,41929.0,41928.0,0.00121313]
[1642652011515,0.67156565,41929.0,41922.0,0.00499077]
[1642652011716,0.072825,41928.0,41922.0,0.00499077]
[1642652011919,0.0479,41927.0,41923.0,0.00012033]
[1642652012117,0.31820344,41926.0,41923.0,0.00012033]
[1642652012315,0.0479,41925.0,41923.0,0.00012033]
[1642652012515,0.66377029,41924.0,41923.0,0.00012033]
[1642652012715,0.40471985,41924.0,41923.0,0.00012033]
[1642652014118,0.40471985,41924.0,41923.0,0.00040729]
[1642652014316,0.41571985,41924.0,41923.0,0.00040729]
[1642652014566,0.26244389,41927.0,41923.0,0.00040729]
[1642652014567,0.03749804,41927.0,41923.0,0.00040729]
[1642652014767,0.0479,41926.0,41923.0,0.25040729]
[1642652014963,0.0479,41925.0,41924.0,0.00010314]
[1642652015663,0.0479,41932.0,41929.0,0.23673149]
[1642652015864,0.94794831,41937.0,41929.0,0.23673149]
[1642652015865,0.05963048,41933.0,41929.0,0.23673149]
[1642652016263,0.07863048,41933.0,41928.0,0.33399861]
[1642652017062,0.019,41933.0,41928.0,0.33399861]
[1642652017562,0.05972898,41936.0,41928.0,0.33399861]
[1642652017962,0.22235798,41935.0,41928.0,0.33399861]
[1642652018432,6.876e-05,41934.0,41928.0,0.33399861]
[1642652019014,6.876e-05,41934.0,41927.0,0.23324248]
[1642652019217,6.876e-05,41934.0,41930.0,0.00028972]
[1642652019415,0.1193386,41934.0,41930.0,0.00028972]
[1642652019615,0.10963472,41933.0,41930.0,0.00028972]
[1642652020417,0.16663472,41933.0,41930.0,0.00028972]
[1642652021617,0.10963472,41933.0,41930.0,0.00028972]
[1642652022474,0.17963472,41933.0,41930.0,0.00028972]
[1642652022769,2.00935496,41931.0,41930.0,0.00028972]
[1642652023070,2.05935496,41931.0,41930.0,0.00028972]
[1642652023768,2.20725496,41931.0,41930.0,0.00028972]
[1642652023983,2.25725496,41931.0,41930.0,0.00028972]
[1642652024168,2.25725496,41931.0,41926.0,0.00150247]
[1642652024367,0.29076758,41927.0,41926.0,0.00028925]
[1642652024568,0.34076758,41927.0,41926.0,0.00150245]
[1642652024769,0.34076758,41927.0,41926.0,0.00157121]
[1642652025568,0.34076758,41927.0,41926.0,0.00035801]
[1642652026417,0.35476758,41927.0,41926.0,0.00035801]
[1642652026822,0.34076758,41927.0,41926.0,0.00035801]
[1642652027623,2.42957754,41927.0,41926.0,0.00035801]
[1642652028321,2.44757754,41927.0,41926.0,0.00035801]
[1642652028523,0.22129468,41925.0,41921.0,0.0115712]
[1642652028725,0.05964773,41926.0,41921.0,0.0115712]
[1642652028922,0.018,41927.0,41922.0,6.876e-05]
[1642652029124,0.018,41927.0,41926.0,0.45029067]
[1642652029562,0.30886876,41934.0,41926.0,0.45029067]
[1642652029763,0.25756621,41931.0,41926.0,0.45029067]
[1642652029963,0.30756621,41931.0,41926.0,0.45029067]
[1642652030266,6.876e-05,41930.0,41926.0,0.00029067]
[1642652031666,0.00116726,41930.0,41926.0,0.00029067]
[1642652032670,0.01806876,41930.0,41926.0,0.00029067]
[1642652032875,0.01916726,41930.0,41926.0,0.00029067]
[1642652033917,6.876e-05,41930.0,41929.0,0.3999]
[1642652034113,0.00116726,41930.0,41929.0,0.3999]
[1642652034514,0.05116726,41930.0,41928.0,0.059628]
[1642652034917,0.05116726,41930.0,41925.0,0.22663247]
[1642652035217,0.05006876,41930.0,41924.0,0.059632]
[1642652035436,0.05006876,41930.0,41922.0,0.06091606]
[1642652035618,0.05006876,41930.0,41923.0,0.32726021]
[1642652035818,6.876e-05,41930.0,41922.0,0.00128206]
[1642652036317,6.876e-05,41930.0,41922.0,6.876e-05]
[1642652036519,0.00109848,41928.0,41922.0,0.00128201]
[1642652037573,0.05963619,41929.0,41922.0,6.876e-05]
[1642652037774,0.00109844,41928.0,41922.0,0.001282]
[1642652038773,0.05963619,41929.0,41922.0,6.876e-05]
[1642652038974,0.00109844,41928.0,41922.0,0.001282]
[1642652039777,0.19578561,41927.0,41922.0,0.001282]
[1642652039977,0.30257348,41926.0,41922.0,6.876e-05]
[1642652040177,0.30257348,41926.0,41922.0,0.001282]
[1642652040727,0.30657348,41926.0,41922.0,0.001282]
[1642652041126,0.30657348,41926.0,41922.0,6.876e-05]
[1642652041330,0.004,41926.0,41922.0,0.00128199]
[1642652042330,0.004,41926.0,41922.0,6.876e-05]
[1642652042528,0.004,41926.0,41922.0,0.00128199]
[1642652042726,0.004,41926.0,41922.0,0.06091499]
[1642652043132,0.004,41926.0,41923.0,0.22403842]
[1642652043729,0.00109842,41928.0,41923.0,0.22403842]
[1642652044561,0.00709842,41928.0,41923.0,0.22403842]
[1642652044766,0.006,41928.0,41923.0,0.22403842]
[1642652044962,0.00709846,41928.0,41923.0,0.22403842]
[1642652045774,0.24378001,41927.0,41922.0,0.00128201]